[Event "*** SCC Grand Prix: Titled Tuesday Blitz"]
[Site "Chess.com"]
[Date "2020.07.07"]
[Round "6"]
[White "Margarita2907"]
[Black "marabu44"]
[Result "0-1"]
[WhiteElo "2085"]
[BlackElo "2243"]
[TimeControl "180+1"]
[EndTime "11:04:32 PDT"]
[Termination "marabu44 won by resignation"]

1. e4 {[%clk 0:03:00.9]} 1... e5 {[%clk 0:02:58.2]} 2. Nf3 {[%clk 0:03:00.8]}
2... Nc6 {[%clk 0:02:57.8]} 3. Bc4 {[%clk 0:03:00.8]} 3... d6 {[%clk 0:02:57.5]}
4. d4 {[%clk 0:03:00.7]} 4... Bg4 {[%clk 0:02:55.8]} 5. d5 {[%clk 0:02:27.9]}
5... Nb8 {[%clk 0:02:48]} 6. Nbd2 {[%clk 0:02:01.9]} 6... Be7 {[%clk 0:02:44.6]}
7. O-O {[%clk 0:02:00.6]} 7... Nd7 {[%clk 0:02:41.6]} 8. Re1 {[%clk 0:01:57.4]}
8... Ngf6 {[%clk 0:02:40.1]} 9. Nf1 {[%clk 0:01:56.7]} 9... O-O {[%clk
0:02:36.5]} 10. h3 {[%clk 0:01:52.6]} 10... Bh5 {[%clk 0:02:34.9]} 11. Ng3
{[%clk 0:01:52.8]} 11... Bg6 {[%clk 0:02:34.9]} 12. a4 {[%clk 0:01:48.7]} 12...
a5 {[%clk 0:02:32.5]} 13. Nh2 {[%clk 0:01:18]} 13... Nc5 {[%clk 0:02:27.3]} 14.
Bd3 {[%clk 0:01:12.9]} 14... Nxd3 {[%clk 0:02:22.4]} 15. cxd3 {[%clk 0:01:12.4]}
15... Nd7 {[%clk 0:02:21.6]} 16. f4 {[%clk 0:01:11.5]} 16... exf4 {[%clk
0:02:20.6]} 17. Bxf4 {[%clk 0:01:11.9]} 17... Bf6 {[%clk 0:02:19.6]} 18. Qc2
{[%clk 0:01:08.8]} 18... Be5 {[%clk 0:02:09.3]} 19. Bxe5 {[%clk 0:01:06.3]}
19... Nxe5 {[%clk 0:02:08.9]} 20. d4 {[%clk 0:01:04.1]} 20... Nd7 {[%clk
0:02:05.7]} 21. Nf3 {[%clk 0:00:59.2]} 21... Nb6 {[%clk 0:02:00.9]} 22. Qf2
{[%clk 0:00:52.6]} 22... Re8 {[%clk 0:01:57.7]} 23. Rad1 {[%clk 0:00:47.6]}
23... Nxa4 {[%clk 0:01:54.8]} 24. e5 {[%clk 0:00:42.5]} 24... Nb6 {[%clk
0:01:54.5]} 25. e6 {[%clk 0:00:22.1]} 25... Nxd5 {[%clk 0:01:52.6]} 26. exf7+
{[%clk 0:00:22.5]} 26... Bxf7 {[%clk 0:01:52.3]} 27. Rf1 {[%clk 0:00:19.6]}
27... Ne3 {[%clk 0:01:49.4]} 28. Rde1 {[%clk 0:00:17.9]} 28... Nxf1 {[%clk
0:01:48.9]} 29. Rxf1 {[%clk 0:00:18.5]} 29... Bd5 {[%clk 0:01:45.8]} 30. Ng5
{[%clk 0:00:17.7]} 30... Qxg5 {[%clk 0:01:43.4]} 0-1

[Event "*** SCC Grand Prix: Titled Tuesday Blitz"]
[Site "Chess.com"]
[Date "2020.07.07"]
[Round "6"]
[White "VladimirBelous"]
[Black "RaunakSadhwani2005"]
[Result "0-1"]
[WhiteElo "2722"]
[BlackElo "2920"]
[TimeControl "180+1"]
[EndTime "11:04:37 PDT"]
[Termination "RaunakSadhwani2005 won by resignation"]

1. c4 {[%clk 0:03:00.9]} 1... f5 {[%clk 0:02:59.6]} 2. g3 {[%clk 0:03:00.4]}
2... Nf6 {[%clk 0:02:59.9]} 3. Bg2 {[%clk 0:03:00.9]} 3... g6 {[%clk 0:03:00.8]}
4. d3 {[%clk 0:02:58]} 4... Bg7 {[%clk 0:03:00.8]} 5. e4 {[%clk 0:02:58.3]} 5...
e5 {[%clk 0:02:54.9]} 6. exf5 {[%clk 0:02:54.4]} 6... gxf5 {[%clk 0:02:55.8]} 7.
Ne2 {[%clk 0:02:54.3]} 7... O-O {[%clk 0:02:55]} 8. d4 {[%clk 0:02:53.8]} 8...
d6 {[%clk 0:02:41.8]} 9. O-O {[%clk 0:02:45.5]} 9... Nc6 {[%clk 0:02:41.9]} 10.
Bg5 {[%clk 0:02:44.8]} 10... h6 {[%clk 0:02:38.9]} 11. Bh4 {[%clk 0:02:44.5]}
11... Qe8 {[%clk 0:02:34.2]} 12. Nbc3 {[%clk 0:02:43.2]} 12... exd4 {[%clk
0:02:21.2]} 13. Nb5 {[%clk 0:02:31.8]} 13... Qd7 {[%clk 0:02:11.1]} 14. Nexd4
{[%clk 0:02:23.9]} 14... Ne5 {[%clk 0:02:04.7]} 15. Re1 {[%clk 0:02:17.3]} 15...
c6 {[%clk 0:02:03.2]} 16. Nc3 {[%clk 0:01:57]} 16... Qf7 {[%clk 0:02:02.8]} 17.
b3 {[%clk 0:01:54.3]} 17... Ng6 {[%clk 0:02:02.7]} 18. Bxf6 {[%clk 0:01:47.8]}
18... Qxf6 {[%clk 0:02:03.6]} 19. Nde2 {[%clk 0:01:46.9]} 19... f4 {[%clk
0:01:55.5]} 20. Be4 {[%clk 0:01:31.6]} 20... fxg3 {[%clk 0:01:48.5]} 21. fxg3
{[%clk 0:01:32.5]} 21... Bh3 {[%clk 0:01:37.8]} 22. Qd2 {[%clk 0:01:10.8]} 22...
Rae8 {[%clk 0:01:28.9]} 23. Qe3 {[%clk 0:00:56.2]} 23... Ne5 {[%clk 0:01:11.5]}
24. Nf4 {[%clk 0:00:47.6]} 24... Ng4 {[%clk 0:01:11.3]} 25. Qd3 {[%clk
0:00:47.9]} 25... Qd4+ {[%clk 0:01:08.1]} 26. Qxd4 {[%clk 0:00:39.4]} 26...
Bxd4+ {[%clk 0:01:09]} 27. Kh1 {[%clk 0:00:40.1]} 27... Nf2+ {[%clk 0:01:07.4]}
0-1

[Event "*** SCC Grand Prix: Titled Tuesday Blitz"]
[Site "Chess.com"]
[Date "2020.07.07"]
[Round "6"]
[White "hanzo_hasashi1"]
[Black "IMHansNiemann"]
[Result "1-0"]
[WhiteElo "2879"]
[BlackElo "2931"]
[TimeControl "180+1"]
[EndTime "11:04:39 PDT"]
[Termination "hanzo_hasashi1 won by resignation"]

1. d4 {[%clk 0:03:00.9]} 1... g6 {[%clk 0:02:58.5]} 2. e4 {[%clk 0:02:56.8]}
2... Bg7 {[%clk 0:02:58.2]} 3. Nc3 {[%clk 0:02:57.1]} 3... d6 {[%clk 0:02:58.1]}
4. Be3 {[%clk 0:02:55.7]} 4... Nf6 {[%clk 0:02:57.9]} 5. h3 {[%clk 0:02:55.5]}
5... c6 {[%clk 0:02:57.6]} 6. a4 {[%clk 0:02:52.9]} 6... Nbd7 {[%clk 0:02:56.1]}
7. Nf3 {[%clk 0:02:52.7]} 7... O-O {[%clk 0:02:49.2]} 8. Be2 {[%clk 0:02:42.4]}
8... e5 {[%clk 0:02:40.7]} 9. dxe5 {[%clk 0:02:38.4]} 9... dxe5 {[%clk
0:02:36.8]} 10. Qd6 {[%clk 0:02:34.8]} 10... Re8 {[%clk 0:02:24.4]} 11. Bc4
{[%clk 0:02:29.4]} 11... Bf8 {[%clk 0:02:21.3]} 12. Qd2 {[%clk 0:02:24.8]} 12...
Bb4 {[%clk 0:02:08.9]} 13. Ng5 {[%clk 0:02:09]} 13... Rf8 {[%clk 0:02:08.2]} 14.
O-O {[%clk 0:02:04.5]} 14... Qe7 {[%clk 0:02:04.2]} 15. Rad1 {[%clk 0:01:58.5]}
15... b6 {[%clk 0:01:06.8]} 16. Kh1 {[%clk 0:01:39.6]} 16... Nc5 {[%clk
0:00:48.1]} 17. Qd6 {[%clk 0:01:28.3]} 17... Qxd6 {[%clk 0:00:29.7]} 18. Rxd6
{[%clk 0:01:29.2]} 18... Kg7 {[%clk 0:00:21.2]} 19. Rxf6 {[%clk 0:01:25.6]}
19... Kxf6 {[%clk 0:00:20.6]} 20. Nxh7+ {[%clk 0:01:25.4]} 20... Kg7 {[%clk
0:00:20.9]} 21. Nxf8 {[%clk 0:01:25.1]} 21... Kxf8 {[%clk 0:00:21.8]} 22. Na2
{[%clk 0:01:22.9]} 22... Ba6 {[%clk 0:00:21.5]} 23. Bxc5+ {[%clk 0:01:17.5]} 1-0

[Event "*** SCC Grand Prix: Titled Tuesday Blitz"]
[Site "Chess.com"]
[Date "2020.07.07"]
[Round "6"]
[White "anon569"]
[Black "Sashadav97"]
[Result "0-1"]
[WhiteElo "2349"]
[BlackElo "2537"]
[TimeControl "180+1"]
[EndTime "11:04:52 PDT"]
[Termination "Sashadav97 won on time"]

1. e4 {[%clk 0:03:00.9]} 1... c5 {[%clk 0:03:00.1]} 2. Nf3 {[%clk 0:02:59.6]}
2... Nc6 {[%clk 0:03:00.7]} 3. d4 {[%clk 0:03:00]} 3... cxd4 {[%clk 0:03:01.6]}
4. Nxd4 {[%clk 0:03:00.5]} 4... Nf6 {[%clk 0:03:02.2]} 5. Nc3 {[%clk 0:03:01.1]}
5... d6 {[%clk 0:03:02.6]} 6. Bg5 {[%clk 0:03:00.4]} 6... e6 {[%clk 0:03:02.3]}
7. Qd2 {[%clk 0:03:00]} 7... a6 {[%clk 0:03:02.5]} 8. O-O-O {[%clk 0:02:58.1]}
8... Bd7 {[%clk 0:03:01.6]} 9. f4 {[%clk 0:02:56.5]} 9... Be7 {[%clk 0:03:01.3]}
10. Nf3 {[%clk 0:02:54.6]} 10... b5 {[%clk 0:03:00.9]} 11. e5 {[%clk 0:02:54.1]}
11... b4 {[%clk 0:03:00.7]} 12. exf6 {[%clk 0:02:54]} 12... bxc3 {[%clk
0:03:00.8]} 13. Qxc3 {[%clk 0:02:54.5]} 13... gxf6 {[%clk 0:03:01.4]} 14. Kb1
{[%clk 0:02:54.3]} 14... d5 {[%clk 0:02:57.1]} 15. Bh4 {[%clk 0:02:49.6]} 15...
a5 {[%clk 0:02:57]} 16. f5 {[%clk 0:02:37.5]} 16... Rc8 {[%clk 0:02:41.2]} 17.
fxe6 {[%clk 0:02:32.2]} 17... fxe6 {[%clk 0:02:42.1]} 18. Qe3 {[%clk 0:02:24.2]}
18... O-O {[%clk 0:02:38.4]} 19. c3 {[%clk 0:01:58.5]} 19... e5 {[%clk 0:02:35]}
20. Rxd5 {[%clk 0:01:31]} 20... Bf5+ {[%clk 0:02:34.7]} 21. Bd3 {[%clk
0:01:30.8]} 21... Qxd5 {[%clk 0:02:31.2]} 22. Bxf5 {[%clk 0:01:30.9]} 22... Rb8
{[%clk 0:02:24.2]} 23. Qh6 {[%clk 0:01:14.7]} 23... Rf7 {[%clk 0:02:23.9]} 24.
Nd2 {[%clk 0:01:02.9]} 24... Ba3 {[%clk 0:02:10.8]} 25. b3 {[%clk 0:00:49.1]}
25... Bf8 {[%clk 0:02:05.4]} 26. Qh5 {[%clk 0:00:47.9]} 26... Qxd2 {[%clk
0:01:55.8]} 27. Qg4+ {[%clk 0:00:12.7]} 27... Kh8 {[%clk 0:01:48]} 28. Be6
{[%clk 0:00:10.4]} 28... Ba3 {[%clk 0:01:43.7]} 0-1

[Event "*** SCC Grand Prix: Titled Tuesday Blitz"]
[Site "Chess.com"]
[Date "2020.07.07"]
[Round "6"]
[White "Izoria123"]
[Black "Grischuk"]
[Result "0-1"]
[WhiteElo "2912"]
[BlackElo "3064"]
[TimeControl "180+1"]
[EndTime "11:04:57 PDT"]
[Termination "Grischuk won by resignation"]

1. Nf3 {[%clk 0:03:00.9]} 1... Nf6 {[%clk 0:02:59]} 2. c4 {[%clk 0:03:01.1]}
2... g6 {[%clk 0:02:58.8]} 3. Nc3 {[%clk 0:02:59.9]} 3... Bg7 {[%clk 0:02:59.1]}
4. e4 {[%clk 0:02:59.7]} 4... d6 {[%clk 0:02:59.6]} 5. d4 {[%clk 0:02:59.7]}
5... O-O {[%clk 0:03:00.3]} 6. Be2 {[%clk 0:02:58.7]} 6... e5 {[%clk 0:03:00.2]}
7. O-O {[%clk 0:02:55.1]} 7... Nc6 {[%clk 0:03:00.3]} 8. d5 {[%clk 0:02:54.5]}
8... Ne7 {[%clk 0:03:00.3]} 9. Kh1 {[%clk 0:02:51.9]} 9... Kh8 {[%clk
0:02:54.9]} 10. Ne1 {[%clk 0:02:47.1]} 10... Nd7 {[%clk 0:02:54.7]} 11. Be3
{[%clk 0:02:45.9]} 11... f5 {[%clk 0:02:54]} 12. f3 {[%clk 0:02:46.1]} 12... f4
{[%clk 0:02:51.4]} 13. Bf2 {[%clk 0:02:46]} 13... g5 {[%clk 0:02:48.6]} 14. Nd3
{[%clk 0:02:34.1]} 14... Ng6 {[%clk 0:02:26.4]} 15. c5 {[%clk 0:02:33.3]} 15...
Rf7 {[%clk 0:02:25.9]} 16. Rc1 {[%clk 0:02:31.2]} 16... Nf6 {[%clk 0:02:22.2]}
17. Rg1 {[%clk 0:02:26.1]} 17... Bf8 {[%clk 0:02:19.5]} 18. cxd6 {[%clk
0:02:19.8]} 18... cxd6 {[%clk 0:02:20.4]} 19. a4 {[%clk 0:02:19]} 19... Rg7
{[%clk 0:02:11.8]} 20. g3 {[%clk 0:02:00.7]} 20... fxg3 {[%clk 0:02:08.1]} 21.
hxg3 {[%clk 0:01:53]} 21... a6 {[%clk 0:01:18.4]} 22. Rg2 {[%clk 0:01:51.7]}
22... Bd7 {[%clk 0:01:17.8]} 23. Rh2 {[%clk 0:01:46.6]} 23... Rc8 {[%clk
0:01:01]} 24. Be3 {[%clk 0:01:44.8]} 24... g4 {[%clk 0:00:57.5]} 25. fxg4 {[%clk
0:01:13.5]} 25... Rxc3 {[%clk 0:00:57.6]} 26. bxc3 {[%clk 0:01:14.4]} 26... Nxe4
{[%clk 0:00:57.4]} 27. Kg2 {[%clk 0:01:15]} 27... Be7 {[%clk 0:00:47.7]} 28. Nf2
{[%clk 0:01:14.6]} 28... Bg5 {[%clk 0:00:33.3]} 29. Nxe4 {[%clk 0:01:06.3]}
29... Bxe3 {[%clk 0:00:33.7]} 30. Qd3 {[%clk 0:01:06.8]} 30... Bxc1 {[%clk
0:00:33]} 31. g5 {[%clk 0:01:03.4]} 31... Bxg5 {[%clk 0:00:31.8]} 0-1

[Event "*** SCC Grand Prix: Titled Tuesday Blitz"]
[Site "Chess.com"]
[Date "2020.07.07"]
[Round "6"]
[White "Shivagami"]
[Black "mikheeva86"]
[Result "1-0"]
[WhiteElo "2201"]
[BlackElo "1920"]
[TimeControl "180+1"]
[EndTime "11:04:58 PDT"]
[Termination "Shivagami won by resignation"]

1. d4 {[%clk 0:03:00.9]} 1... Nf6 {[%clk 0:02:58.1]} 2. c4 {[%clk 0:03:01]} 2...
e6 {[%clk 0:02:58.7]} 3. Nc3 {[%clk 0:03:00.3]} 3... d5 {[%clk 0:02:59.6]} 4.
cxd5 {[%clk 0:02:59.8]} 4... exd5 {[%clk 0:02:58.9]} 5. Bg5 {[%clk 0:03:00.3]}
5... Nbd7 {[%clk 0:02:55.8]} 6. e3 {[%clk 0:02:59.2]} 6... Be7 {[%clk
0:02:52.8]} 7. Bd3 {[%clk 0:02:53.3]} 7... O-O {[%clk 0:02:50.9]} 8. Nge2 {[%clk
0:02:53.2]} 8... c6 {[%clk 0:02:50.8]} 9. O-O {[%clk 0:02:53.1]} 9... Re8 {[%clk
0:02:49.9]} 10. f3 {[%clk 0:02:52.8]} 10... Nf8 {[%clk 0:02:48.6]} 11. Qc2
{[%clk 0:02:43.6]} 11... h6 {[%clk 0:02:38.5]} 12. Bh4 {[%clk 0:02:40.7]} 12...
Ne6 {[%clk 0:02:12.6]} 13. Rad1 {[%clk 0:02:23.7]} 13... g6 {[%clk 0:02:05.5]}
14. Bxg6 {[%clk 0:01:54.4]} 14... fxg6 {[%clk 0:02:03.7]} 15. Qxg6+ {[%clk
0:01:53.1]} 15... Ng7 {[%clk 0:02:04.3]} 16. Nf4 {[%clk 0:01:42]} 16... Bf5
{[%clk 0:02:00.8]} 17. Qxh6 {[%clk 0:01:40.3]} 17... Kf8 {[%clk 0:01:36.3]} 18.
e4 {[%clk 0:00:58.1]} 18... Ng8 {[%clk 0:01:28.7]} 19. Bxe7+ {[%clk 0:00:52.9]}
19... Qxe7 {[%clk 0:01:23.2]} 20. Qh8 {[%clk 0:00:50.8]} 20... Qg5 {[%clk
0:01:02]} 21. Nfe2 {[%clk 0:00:31.8]} 21... Bh3 {[%clk 0:00:52.2]} 22. Qxh3
{[%clk 0:00:29.9]} 1-0

[Event "*** SCC Grand Prix: Titled Tuesday Blitz"]
[Site "Chess.com"]
[Date "2020.07.07"]
[Round "6"]
[White "novendrapriasmoro"]
[Black "PSvidler"]
[Result "0-1"]
[WhiteElo "2647"]
[BlackElo "2990"]
[TimeControl "180+1"]
[EndTime "11:05:06 PDT"]
[Termination "PSvidler won by resignation"]

1. e4 {[%clk 0:03:00.9]} 1... g6 {[%clk 0:02:58.6]} 2. d4 {[%clk 0:03:00.9]}
2... Bg7 {[%clk 0:02:59.1]} 3. Nf3 {[%clk 0:03:01.8]} 3... d6 {[%clk 0:02:59.3]}
4. h3 {[%clk 0:02:59.8]} 4... Nf6 {[%clk 0:02:56.4]} 5. Nbd2 {[%clk 0:02:59.3]}
5... O-O {[%clk 0:02:54.8]} 6. Bd3 {[%clk 0:02:59.2]} 6... c5 {[%clk 0:02:55]}
7. c3 {[%clk 0:02:58.7]} 7... cxd4 {[%clk 0:02:54.9]} 8. cxd4 {[%clk 0:02:59.6]}
8... Nc6 {[%clk 0:02:55.5]} 9. O-O {[%clk 0:03:00.1]} 9... a5 {[%clk 0:02:51]}
10. a3 {[%clk 0:02:59.3]} 10... a4 {[%clk 0:02:40.9]} 11. Re1 {[%clk 0:02:59.3]}
11... d5 {[%clk 0:02:34]} 12. e5 {[%clk 0:02:58]} 12... Ne8 {[%clk 0:02:34.6]}
13. b4 {[%clk 0:02:47.5]} 13... Qb6 {[%clk 0:02:31.5]} 14. Bb2 {[%clk
0:02:45.2]} 14... Nc7 {[%clk 0:02:31.3]} 15. Rc1 {[%clk 0:02:44.5]} 15... Ne6
{[%clk 0:02:25.3]} 16. Nb1 {[%clk 0:02:12.4]} 16... Bh6 {[%clk 0:01:56.6]} 17.
Nc3 {[%clk 0:01:30.9]} 17... Bxc1 {[%clk 0:01:55.9]} 18. Qxc1 {[%clk 0:01:25.3]}
18... Ncxd4 {[%clk 0:01:52.3]} 19. Nxd5 {[%clk 0:01:17]} 19... Nxf3+ {[%clk
0:01:51.9]} 20. gxf3 {[%clk 0:01:17.9]} 20... Qd8 {[%clk 0:01:52.2]} 21. Be4
{[%clk 0:01:16.1]} 21... Bd7 {[%clk 0:01:44.2]} 22. Rd1 {[%clk 0:01:13.8]} 22...
Bc6 {[%clk 0:01:38.4]} 23. Nf6+ {[%clk 0:01:10.2]} 23... exf6 {[%clk 0:01:39.3]}
24. Rxd8 {[%clk 0:01:10.1]} 24... Rfxd8 {[%clk 0:01:39.8]} 25. Bxc6 {[%clk
0:00:59.8]} 25... Rac8 {[%clk 0:01:38.4]} 26. b5 {[%clk 0:00:59.6]} 26... bxc6
{[%clk 0:01:38.1]} 27. bxc6 {[%clk 0:00:48.7]} 27... f5 {[%clk 0:01:35]} 28. Qc4
{[%clk 0:00:45.9]} 28... Rc7 {[%clk 0:01:33.3]} 29. Qxa4 {[%clk 0:00:44.6]}
29... Rdc8 {[%clk 0:01:33.3]} 30. Bc1 {[%clk 0:00:33.6]} 30... h5 {[%clk
0:01:26]} 31. h4 {[%clk 0:00:19.2]} 31... Rxc6 {[%clk 0:01:26.2]} 32. Bg5 {[%clk
0:00:19.5]} 32... Rc4 {[%clk 0:01:18.9]} 33. Qb4 {[%clk 0:00:19]} 33... Rxb4
{[%clk 0:01:18.6]} 0-1

[Event "*** SCC Grand Prix: Titled Tuesday Blitz"]
[Site "Chess.com"]
[Date "2020.07.07"]
[Round "6"]
[White "Man-Chuk"]
[Black "Zq1"]
[Result "1/2-1/2"]
[WhiteElo "2838"]
[BlackElo "2523"]
[TimeControl "180+1"]
[EndTime "11:05:08 PDT"]
[Termination "Game drawn by repetition"]

1. e4 {[%clk 0:02:24]} 1... c5 {[%clk 0:02:58.5]} 2. Nf3 {[%clk 0:02:24.1]} 2...
d6 {[%clk 0:02:58.6]} 3. Bb5+ {[%clk 0:02:24]} 3... Bd7 {[%clk 0:02:58.2]} 4.
Bxd7+ {[%clk 0:02:17.3]} 4... Nxd7 {[%clk 0:02:58.3]} 5. c4 {[%clk 0:02:17.7]}
5... Ngf6 {[%clk 0:02:57.6]} 6. Nc3 {[%clk 0:02:17.9]} 6... e6 {[%clk
0:02:57.7]} 7. d4 {[%clk 0:02:16.2]} 7... cxd4 {[%clk 0:02:57.3]} 8. Nxd4 {[%clk
0:02:17.1]} 8... a6 {[%clk 0:02:55.8]} 9. O-O {[%clk 0:02:16.5]} 9... Be7 {[%clk
0:02:55.1]} 10. b3 {[%clk 0:02:14.7]} 10... O-O {[%clk 0:02:52.3]} 11. Bb2
{[%clk 0:02:13.4]} 11... Qc7 {[%clk 0:02:52.2]} 12. Rc1 {[%clk 0:02:12.6]} 12...
Rac8 {[%clk 0:02:52.1]} 13. Qe2 {[%clk 0:02:10.3]} 13... Rfe8 {[%clk 0:02:50.7]}
14. Rfd1 {[%clk 0:02:09.6]} 14... Qb8 {[%clk 0:02:47.2]} 15. Ba3 {[%clk
0:02:01]} 15... Ne5 {[%clk 0:02:37]} 16. f4 {[%clk 0:01:58.4]} 16... Ng6 {[%clk
0:02:36]} 17. f5 {[%clk 0:01:48.5]} 17... exf5 {[%clk 0:02:31.4]} 18. Nxf5
{[%clk 0:01:40.5]} 18... Rc6 {[%clk 0:01:56.3]} 19. Bb2 {[%clk 0:01:31.1]} 19...
Bf8 {[%clk 0:01:46.9]} 20. Rf1 {[%clk 0:01:25.9]} 20... b5 {[%clk 0:01:30.8]}
21. cxb5 {[%clk 0:00:59.3]} 21... axb5 {[%clk 0:01:29.8]} 22. Nd5 {[%clk
0:00:58.8]} 22... Rxc1 {[%clk 0:01:15.3]} 23. Nh6+ {[%clk 0:00:48.5]} 23... Kh8
{[%clk 0:01:12.2]} 24. Nxf7+ {[%clk 0:00:48]} 24... Kg8 {[%clk 0:01:12.1]} 25.
Nh6+ {[%clk 0:00:47.6]} 25... Kh8 {[%clk 0:01:10.8]} 26. Nf7+ {[%clk 0:00:11.9]}
26... Kg8 {[%clk 0:01:09.7]} 27. Nh6+ {[%clk 0:00:11.9]} 27... Kh8 {[%clk
0:01:09.1]} 28. Nf7+ {[%clk 0:00:06.3]} 1/2-1/2

[Event "*** SCC Grand Prix: Titled Tuesday Blitz"]
[Site "Chess.com"]
[Date "2020.07.07"]
[Round "6"]
[White "Shushik"]
[Black "TurboSteen"]
[Result "1-0"]
[WhiteElo "2202"]
[BlackElo "1961"]
[TimeControl "180+1"]
[EndTime "11:05:09 PDT"]
[Termination "Shushik won by resignation"]

1. e4 {[%clk 0:03:00.9]} 1... e6 {[%clk 0:02:57.4]} 2. d4 {[%clk 0:03:00.8]}
2... d5 {[%clk 0:02:57.8]} 3. Nd2 {[%clk 0:03:01.1]} 3... Nf6 {[%clk 0:02:56]}
4. e5 {[%clk 0:03:01.2]} 4... Nfd7 {[%clk 0:02:55.9]} 5. Bd3 {[%clk 0:03:01.2]}
5... c5 {[%clk 0:02:55.4]} 6. c3 {[%clk 0:03:01.5]} 6... Nc6 {[%clk 0:02:55.6]}
7. Ngf3 {[%clk 0:03:01.3]} 7... g6 {[%clk 0:02:53.9]} 8. O-O {[%clk 0:03:00]}
8... Bg7 {[%clk 0:02:53.7]} 9. Re1 {[%clk 0:02:57.7]} 9... O-O {[%clk
0:02:50.4]} 10. b3 {[%clk 0:02:52]} 10... f6 {[%clk 0:02:09.5]} 11. Ba3 {[%clk
0:02:44]} 11... fxe5 {[%clk 0:02:06.2]} 12. Nxe5 {[%clk 0:02:27.9]} 12... Ncxe5
{[%clk 0:01:58.7]} 13. dxe5 {[%clk 0:02:27.1]} 13... Nxe5 {[%clk 0:01:56.7]} 14.
Bf1 {[%clk 0:02:13.6]} 14... Qh4 {[%clk 0:01:49.5]} 15. g3 {[%clk 0:02:06.4]}
15... Qf6 {[%clk 0:01:38]} 16. Bxc5 {[%clk 0:02:05.4]} 16... Rf7 {[%clk
0:01:31.4]} 17. Bd4 {[%clk 0:01:59.2]} 17... Qf5 {[%clk 0:01:23.8]} 18. Bg2
{[%clk 0:01:55.4]} 18... Bd7 {[%clk 0:01:11.1]} 19. Qe2 {[%clk 0:01:45.2]} 19...
Ng4 {[%clk 0:01:04.6]} 20. Bxg7 {[%clk 0:01:42.1]} 20... Kxg7 {[%clk 0:01:03.1]}
21. Rf1 {[%clk 0:01:36.4]} 21... Raf8 {[%clk 0:00:59.9]} 22. Bh3 {[%clk
0:01:29.2]} 22... e5 {[%clk 0:00:47.2]} 23. f3 {[%clk 0:01:21.8]} 23... Qh5
{[%clk 0:00:37.3]} 24. Bxg4 {[%clk 0:01:19.2]} 24... Bxg4 {[%clk 0:00:33.5]} 25.
fxg4 {[%clk 0:01:19.1]} 25... Qg5 {[%clk 0:00:28.2]} 26. Nf3 {[%clk 0:01:18.5]}
26... Qxg4 {[%clk 0:00:24.5]} 27. Qxe5+ {[%clk 0:01:17.8]} 27... Kh6 {[%clk
0:00:23.2]} 28. Qe3+ {[%clk 0:01:16.1]} 28... Kg7 {[%clk 0:00:21.4]} 29. Qd4+
{[%clk 0:01:12.3]} 29... Kh6 {[%clk 0:00:20.3]} 30. Qxg4 {[%clk 0:01:11.6]} 1-0

[Event "*** SCC Grand Prix: Titled Tuesday Blitz"]
[Site "Chess.com"]
[Date "2020.07.07"]
[Round "6"]
[White "JoliyRoger"]
[Black "mirochka"]
[Result "0-1"]
[WhiteElo "2247"]
[BlackElo "2138"]
[TimeControl "180+1"]
[EndTime "11:05:10 PDT"]
[Termination "mirochka won by resignation"]

1. Nf3 {[%clk 0:03:00.9]} 1... c5 {[%clk 0:02:59.1]} 2. c4 {[%clk 0:03:01.3]}
2... Nf6 {[%clk 0:02:55.2]} 3. Nc3 {[%clk 0:03:01.7]} 3... e6 {[%clk 0:02:55.1]}
4. e3 {[%clk 0:03:01.9]} 4... Nc6 {[%clk 0:02:53.2]} 5. Be2 {[%clk 0:03:01.6]}
5... Be7 {[%clk 0:02:50.1]} 6. O-O {[%clk 0:03:01.1]} 6... d5 {[%clk 0:02:50.2]}
7. cxd5 {[%clk 0:03:00.7]} 7... exd5 {[%clk 0:02:51.1]} 8. d4 {[%clk 0:03:00.8]}
8... O-O {[%clk 0:02:43.6]} 9. dxc5 {[%clk 0:03:00.7]} 9... Bxc5 {[%clk
0:02:42.8]} 10. b3 {[%clk 0:03:00.3]} 10... d4 {[%clk 0:02:36.8]} 11. Na4 {[%clk
0:02:59.7]} 11... b6 {[%clk 0:02:26.8]} 12. Nxc5 {[%clk 0:02:46.2]} 12... bxc5
{[%clk 0:02:26.2]} 13. Ba3 {[%clk 0:02:38.2]} 13... Ne4 {[%clk 0:02:24.8]} 14.
exd4 {[%clk 0:02:33.8]} 14... Nc3 {[%clk 0:02:21.9]} 15. Qd2 {[%clk 0:02:25.2]}
15... Nxd4 {[%clk 0:01:22.6]} 16. Nxd4 {[%clk 0:02:23.1]} 16... Qxd4 {[%clk
0:01:23]} 17. Qxd4 {[%clk 0:02:21.1]} 17... Nxe2+ {[%clk 0:01:20.6]} 18. Kh1
{[%clk 0:02:21.4]} 18... cxd4 {[%clk 0:01:18.4]} 19. Bc5 {[%clk 0:02:21.8]}
19... Re8 {[%clk 0:01:13.5]} 20. Rfe1 {[%clk 0:02:19.8]} 20... Bb7 {[%clk
0:01:10.5]} 21. f3 {[%clk 0:02:17.2]} 21... Rad8 {[%clk 0:01:08.4]} 22. Rad1
{[%clk 0:02:17.4]} 22... d3 {[%clk 0:01:07.6]} 23. Rd2 {[%clk 0:02:15.5]} 23...
Ba6 {[%clk 0:01:00.5]} 24. Bxa7 {[%clk 0:02:14.9]} 24... Rc8 {[%clk 0:01:00.4]}
25. Bf2 {[%clk 0:01:58.9]} 25... f6 {[%clk 0:01:00.1]} 26. h4 {[%clk 0:01:57.1]}
26... Rc2 {[%clk 0:00:54.5]} 27. Red1 {[%clk 0:01:56.9]} 27... Rxd2 {[%clk
0:00:53.4]} 28. Rxd2 {[%clk 0:01:56.5]} 28... Rc8 {[%clk 0:00:54]} 29. a4 {[%clk
0:01:45.9]} 29... Rc2 {[%clk 0:00:52.6]} 30. Be3 {[%clk 0:01:40.6]} 30... Nc3
{[%clk 0:00:48.7]} 31. Kh2 {[%clk 0:01:33]} 31... Rxd2 {[%clk 0:00:47.8]} 32.
Bxd2 {[%clk 0:01:32.9]} 32... Nb1 {[%clk 0:00:48.4]} 33. Be3 {[%clk 0:01:27.7]}
33... d2 {[%clk 0:00:45.9]} 34. Bxd2 {[%clk 0:01:28.6]} 34... Nxd2 {[%clk
0:00:46.3]} 35. b4 {[%clk 0:01:28.7]} 35... Nc4 {[%clk 0:00:42.9]} 36. Kg3
{[%clk 0:01:28.5]} 36... Nb2 {[%clk 0:00:41.7]} 37. b5 {[%clk 0:01:28.5]} 37...
Bc8 {[%clk 0:00:40.3]} 38. a5 {[%clk 0:01:28.9]} 38... Bd7 {[%clk 0:00:36.4]}
39. b6 {[%clk 0:01:27.1]} 39... Bc8 {[%clk 0:00:36.5]} 40. Kf4 {[%clk
0:01:26.2]} 40... Nc4 {[%clk 0:00:36.9]} 41. g4 {[%clk 0:01:24.1]} 41... Nxa5
{[%clk 0:00:36.2]} 42. h5 {[%clk 0:01:24.6]} 42... Nc4 {[%clk 0:00:36.2]} 43.
Ke4 {[%clk 0:01:25.1]} 43... Nxb6 {[%clk 0:00:35.9]} 44. f4 {[%clk 0:01:25.8]}
44... Bb7+ {[%clk 0:00:36]} 45. Kd4 {[%clk 0:01:24.1]} 45... Kf7 {[%clk
0:00:36.6]} 46. g5 {[%clk 0:01:24.5]} 46... fxg5 {[%clk 0:00:35.6]} 0-1